bitfinex-derivatives/quotes_BTCF0:USTF0_20250426
["timestamp","ask_amount","ask_price","bid_price","bid_amount"]
[1745703314686,0.188,94323.0,94322.0,0.64109854]
[1745703315295,0.2208,94323.0,94322.0,0.64109854]
[1745703318796,0.2208,94323.0,94322.0,1.00189854]
[1745703319602,0.2208,94323.0,94322.0,0.94681594]
[1745703325595,0.2208,94323.0,94322.0,0.7308517]
[1745703329700,0.2208,94323.0,94322.0,0.78595878]
[1745703336320,0.0528,94323.0,94322.0,0.78595878]
[1745703337215,0.2208,94323.0,94322.0,0.78595878]
[1745703342323,0.2208,94323.0,94322.0,0.7308517]
[1745703349633,0.2208,94323.0,94322.0,0.3700517]
[1745703349828,0.2208,94323.0,94322.0,0.7308517]
[1745703353527,0.2208,94323.0,94322.0,0.3700517]
[1745703353727,0.2208,94323.0,94322.0,0.7308517]
[1745703355331,0.2208,94323.0,94322.0,0.3700517]
[1745703355929,0.2208,94323.0,94322.0,0.7308517]
[1745703356134,0.2208,94323.0,94322.0,0.78597328]
[1745703359832,0.2208,94323.0,94322.0,0.7308517]
[1745703361934,0.2208,94323.0,94322.0,0.78597539]
[1745703367136,0.188,94323.0,94322.0,0.78597539]
[1745703368130,0.02,94323.0,94322.0,0.78597539]
[1745703368638,0.02,94323.0,94322.0,0.42517539]
[1745703368839,0.02,94323.0,94322.0,0.78597539]
[1745703369740,0.02,94323.0,94322.0,0.42517539]
[1745703369947,0.02,94323.0,94322.0,0.78597539]
[1745703370239,0.1359873,94323.0,94322.0,0.78597539]
[1745703370443,0.06873116,94339.0,94338.0,0.2119358]
[1745703370637,0.16873116,94339.0,94338.0,0.7873358]
[1745703370833,0.16873116,94339.0,94338.0,0.8424376]
[1745703371237,0.16873116,94339.0,94338.0,0.8501358]
[1745703371948,0.16973116,94339.0,94338.0,0.8501358]
[1745703372648,0.101,94339.0,94338.0,0.8501358]
[1745703375649,0.101,94339.0,94338.0,0.4893358]
[1745703375837,0.101,94339.0,94338.0,0.8501358]
[1745703379550,0.101,94339.0,94338.0,1.0261358]
[1745703379751,0.101,94339.0,94338.0,0.8501358]
[1745703381150,0.269,94339.0,94338.0,0.8501358]
[1745703383354,0.101,94339.0,94338.0,0.8501358]
[1745703387159,0.269,94339.0,94338.0,0.8501358]
[1745703390160,0.101,94339.0,94338.0,0.8501358]
[1745703392267,0.3018,94339.0,94338.0,0.8501358]
[1745703393869,0.3018,94339.0,94338.0,0.4265358]
[1745703394168,0.3323,94339.0,94338.0,0.4265358]
[1745703396763,0.3323,94339.0,94333.0,0.19240369]
[1745703396764,0.2119447,94334.0,94333.0,0.22620369]
[1745703396957,0.5019447,94334.0,94333.0,0.26620369]
[1745703397154,0.7759527,94334.0,94333.0,0.26620369]
[1745703397572,0.8402527,94334.0,94333.0,0.26620369]
[1745703399774,0.8402527,94334.0,94333.0,0.1046]
[1745703400076,0.8402527,94334.0,94333.0,0.316547]
[1745703403974,0.8402527,94334.0,94333.0,0.1046]
[1745703405176,0.7342447,94334.0,94333.0,0.1046]
[1745703422194,0.8402527,94334.0,94333.0,0.1046]
[1745703424492,0.8402527,94334.0,94333.0,0.1375]
[1745703426190,0.7342447,94334.0,94333.0,0.1375]
[1745703433387,0.7342447,94334.0,94333.0,0.0729]
[1745703433791,0.2119695,94323.0,94317.0,0.21547159]
[1745703433989,0.2119695,94323.0,94322.0,0.20160369]
[1745703433990,0.8427695,94323.0,94322.0,0.20160369]
[1745703434296,0.7988,94323.0,94322.0,0.20160369]
[1745703434497,0.438,94323.0,94322.0,0.2519717]
[1745703434790,0.6499695,94323.0,94322.0,0.2519717]
[1745703435184,0.4839695,94323.0,94322.0,0.2834717]
[1745703458023,0.272,94323.0,94322.0,0.2834717]
[1745703458219,0.4839695,94323.0,94322.0,0.2834717]
[1745703464915,0.5147695,94323.0,94322.0,0.2834717]
[1745703479130,0.3028,94323.0,94322.0,0.2834717]
[1745703482529,0.3028,94323.0,94322.0,0.3480717]
[1745703484632,0.272,94323.0,94322.0,0.3480717]
[1745703484837,0.52244404,94342.0,94335.0,0.2119425]
[1745703485034,0.32490178,94336.0,94335.0,0.3219425]
[1745703485627,0.32490178,94336.0,94335.0,0.4492425]
[1745703485834,0.19,94336.0,94335.0,0.4492425]
[1745703486135,0.194,94336.0,94335.0,0.4492425]
[1745703487843,0.05264746,94336.0,94335.0,0.8052465]
[1745703488034,0.13490178,94343.0,94342.0,0.2119268]
[1745703488229,0.21490178,94343.0,94342.0,0.7127268]
[1745703488833,0.21490178,94343.0,94342.0,0.7770268]
[1745703489029,0.13053638,94343.0,94342.0,0.8830228]
[1745703489234,0.4179,94367.0,94351.0,0.2119066]
[1745703489438,0.24164404,94352.0,94351.0,0.7772666]
[1745703489736,0.24164404,94352.0,94351.0,0.8832546]
[1745703490144,0.08,94352.0,94351.0,1.1155546]
[1745703490938,0.08,94352.0,94351.0,1.12816295]
[1745703491139,0.08,94352.0,94351.0,0.96016295]
[1745703495044,0.08,94352.0,94351.0,0.85417495]
[1745703498443,0.2919043,94352.0,94351.0,0.23728]
[1745703498744,0.2919043,94352.0,94351.0,0.4491866]
[1745703498944,0.2919043,94352.0,94351.0,0.14]
[1745703499147,0.8207043,94352.0,94351.0,0.14]
[1745703499342,0.8842043,94352.0,94351.0,0.14]
[1745703500952,0.9901923,94352.0,94351.0,0.14]
[1745703501148,0.8842043,94352.0,94351.0,0.14]
[1745703510753,0.5234043,94352.0,94351.0,0.14]
[1745703510950,0.8842043,94352.0,94351.0,0.14]
[1745703512248,0.5234043,94352.0,94351.0,0.14]
[1745703512452,0.8842043,94352.0,94351.0,0.14]
[1745703520049,0.5234043,94352.0,94351.0,0.14]
[1745703520244,0.8842043,94352.0,94351.0,0.14]
[1745703521652,0.5234043,94352.0,94351.0,0.14]
[1745703521959,0.8842043,94352.0,94351.0,0.14]
[1745703524165,0.8207043,94352.0,94351.0,0.14]
[1745703524363,0.248,94352.0,94351.0,0.3519066]
[1745703525266,0.08,94352.0,94351.0,0.5849066]
[1745703526169,0.08,94352.0,94351.0,0.4169066]
[1745703526960,0.08,94352.0,94351.0,1.6636246]
[1745703527263,0.08,94352.0,94351.0,1.8316246]
[1745703528165,0.08,94352.0,94351.0,1.3016946]
[1745703528764,0.08,94352.0,94351.0,1.0516946]
[1745703532056,0.08,94352.0,94351.0,0.8836946]
[1745703538767,0.08,94352.0,94351.0,0.5228946]
[1745703538968,0.08,94352.0,94351.0,0.8836946]
[1745703540162,0.08,94352.0,94351.0,0.7777066]
[1745703540359,0.08,94352.0,94351.0,0.4169066]
[1745703540563,0.08,94352.0,94351.0,0.8836946]
[1745703541270,0.08,94352.0,94351.0,0.7777066]
[1745703545371,0.08,94352.0,94351.0,0.8836946]
[1745703545567,0.0013,94361.0,94360.0,0.2118863]
[1745703545868,0.0013,94361.0,94360.0,0.7226863]
[1745703545869,0.1513,94361.0,94360.0,0.7226863]
[1745703546475,0.1513,94361.0,94360.0,0.7848863]
[1745703546673,0.1523,94361.0,94360.0,0.79276515]
[1745703547066,0.1523,94361.0,94360.0,0.96076515]
[1745703548276,0.1513,94361.0,94360.0,0.96076515]
[1745703548478,0.0023,94361.0,94360.0,0.96076515]
[1745703549881,0.0052,94368.0,94367.0,0.2118706]
[1745703550177,0.1252,94368.0,94367.0,0.4265506]
[1745703550778,0.1252,94368.0,94367.0,0.4927506]
[1745703551873,0.1252,94368.0,94367.0,0.8535506]
[1745703571686,0.1252,94368.0,94367.0,0.4927506]
[1745703572084,0.1252,94368.0,94367.0,0.8535506]
[1745703575593,0.1252,94368.0,94367.0,0.4927506]
[1745703575793,0.1252,94368.0,94367.0,0.8535506]
[1745703576095,0.1252,94368.0,94367.0,0.4927506]
[1745703576295,0.1252,94368.0,94367.0,0.8535506]
[1745703580892,0.1252,94368.0,94367.0,0.90852653]
[1745703582295,0.1252,94368.0,94367.0,0.93952653]
[1745703584903,0.1252,94368.0,94367.0,0.58172653]
[1745703585102,0.1252,94368.0,94367.0,0.94252653]
[1745703594002,0.1252,94368.0,94367.0,0.58172653]
[1745703594201,0.1252,94368.0,94367.0,0.94252653]
[1745703595109,0.1252,94368.0,94367.0,0.8235506]
[1745703599612,0.1252,94368.0,94367.0,0.8554506]
[1745703601213,0.0052,94368.0,94367.0,0.8554506]
[1745703602318,0.031,94376.0,94375.0,0.2118527]
[1745703602509,0.161,94376.0,94375.0,0.3418527]
[1745703602909,0.161,94376.0,94375.0,0.7026527]
[1745703603111,0.329,94376.0,94375.0,0.7026527]
[1745703603909,0.329,94376.0,94375.0,0.7036527]
[1745703604811,0.329,94376.0,94375.0,0.7686927]
[1745703606515,0.329,94376.0,94375.0,0.78039449]
[1745703614726,0.329,94376.0,94375.0,0.41959449]
[1745703616725,0.3597,94376.0,94375.0,0.41959449]
[1745703621227,0.3597,94376.0,94375.0,0.45279449]
[1745703630936,0.5715504,94376.0,94375.0,0.45279449]
[1745703631533,0.5408504,94376.0,94375.0,0.45279449]
[1745703631726,0.5408504,94376.0,94375.0,0.46871581]
[1745703633231,0.5408504,94376.0,94375.0,0.45279449]
[1745703633537,0.5408504,94376.0,94375.0,0.46872396]
[1745703635534,0.5408504,94376.0,94375.0,0.46873026]
[1745703637140,0.5408504,94376.0,94375.0,0.46870714]
[1745703638934,0.5408504,94376.0,94375.0,0.45279449]
[1745703639133,0.5408504,94376.0,94375.0,0.46870828]
[1745703643129,0.5408504,94376.0,94375.0,0.46859044]
[1745703643633,0.5408504,94376.0,94375.0,0.45279449]
[1745703645336,0.5408504,94376.0,94356.0,0.24]
[1745703645337,0.2118706,94367.0,94356.0,0.24]
[1745703645537,0.7226706,94367.0,94366.0,0.59242449]
[1745703646132,0.8906706,94367.0,94366.0,0.60384298]
[1745703646539,0.8906706,94367.0,94366.0,0.60684298]
[1745703646837,0.8906706,94367.0,94366.0,0.63764298]
[1745703647246,0.7226706,94367.0,94366.0,0.63764298]
[1745703648239,0.8906706,94367.0,94366.0,0.63764298]
[1745703649549,0.8906706,94367.0,94366.0,0.42217139]
[1745703650443,0.8906706,94367.0,94366.0,0.35709139]
[1745703650642,0.9540706,94367.0,94366.0,0.42217139]
[1745703660751,0.9540706,94367.0,94366.0,0.45287139]
[1745703664658,0.9220706,94367.0,94366.0,0.45287139]
[1745703666352,0.9220706,94367.0,94366.0,0.38779139]
[1745703666658,0.9220706,94367.0,94366.0,0.103]
[1745703666850,0.9220706,94367.0,94366.0,0.1342]
[1745703667961,0.9220706,94367.0,94366.0,0.3460729]
[1745703669769,0.9220706,94367.0,94366.0,0.1342]
[1745703669965,0.9220706,94367.0,94366.0,0.3460729]
[1745703675863,0.9220706,94367.0,94366.0,0.4094729]
[1745703682169,0.9220706,94367.0,94366.0,0.4740729]
[1745703702383,0.5612706,94367.0,94366.0,0.4740729]
[1745703702580,0.9220706,94367.0,94366.0,0.4740729]
[1745703703381,0.9220706,94367.0,94366.0,0.4094729]
[1745703703680,0.9220706,94367.0,94366.0,0.4740729]
[1745703704383,0.5612706,94367.0,94366.0,0.4740729]
[1745703704580,0.9220706,94367.0,94366.0,0.4740729]
[1745703705084,0.5612706,94367.0,94366.0,0.4740729]
[1745703705284,0.9220706,94367.0,94366.0,0.4740729]
[1745703705485,0.5612706,94367.0,94366.0,0.4740729]
[1745703705685,0.9220706,94367.0,94366.0,0.4740729]
[1745703707785,0.5612706,94367.0,94366.0,0.4740729]
[1745703707985,0.9220706,94367.0,94366.0,0.4740729]
[1745703711691,0.5612706,94367.0,94366.0,0.4740729]
[1745703711887,0.9220706,94367.0,94366.0,0.4740729]
[1745703713693,0.5612706,94367.0,94366.0,0.4740729]
[1745703713882,0.9220706,94367.0,94366.0,0.4740729]
[1745703714586,0.9220706,94367.0,94366.0,0.4740329]
[1745703719399,0.5612706,94367.0,94366.0,0.4740329]
[1745703719599,0.9220706,94367.0,94366.0,0.4740329]
[1745703721909,0.5612706,94367.0,94366.0,0.4740329]
[1745703722109,0.9220706,94367.0,94366.0,0.4740329]
[1745703725709,0.9220706,94367.0,94366.0,0.26216]
[1745703725910,0.9220706,94367.0,94366.0,0.4740329]
[1745703730111,0.5612706,94367.0,94366.0,0.4740329]
[1745703730313,0.9220706,94367.0,94366.0,0.4740329]
[1745703730917,0.5612706,94367.0,94366.0,0.4740329]
[1745703731108,0.9220706,94367.0,94366.0,0.4740329]
[1745703734713,0.5612706,94367.0,94366.0,0.4740329]
[1745703734910,0.9220706,94367.0,94366.0,0.4740329]
[1745703737207,0.9220706,94367.0,94366.0,0.48986207]
[1745703738923,0.5612706,94367.0,94366.0,0.48986207]
[1745703739117,0.9220706,94367.0,94366.0,0.48986207]
[1745703739322,0.9220706,94367.0,94366.0,0.48987015]
[1745703742928,0.9220706,94367.0,94366.0,0.48983099]
[1745703744931,0.9220706,94367.0,94366.0,0.48982929]
[1745703746322,0.9220706,94367.0,94366.0,0.4740329]
[1745703747028,0.5612706,94367.0,94366.0,0.4740329]
[1745703747229,0.9220706,94367.0,94366.0,0.4740329]
[1745703747830,0.5612706,94367.0,94366.0,0.4740329]
[1745703748223,0.9220706,94367.0,94366.0,0.4740329]
[1745703749430,0.5612706,94367.0,94366.0,0.4740329]
[1745703749631,0.9220706,94367.0,94366.0,0.4740329]
[1745703751630,0.5612706,94367.0,94366.0,0.4740329]
[1745703751831,0.9220706,94367.0,94366.0,0.4740329]
[1745703753930,0.5612706,94367.0,94366.0,0.4740329]
[1745703754231,0.9220706,94367.0,94366.0,0.4740329]
[1745703757935,0.5612706,94367.0,94366.0,0.4740329]
[1745703758128,0.9220706,94367.0,94366.0,0.4740329]
[1745703758534,0.5612706,94367.0,94366.0,0.4740329]
[1745703758735,0.9220706,94367.0,94366.0,0.4740329]
[1745703760233,0.5612706,94367.0,94366.0,0.4740329]
[1745703760433,0.9220706,94367.0,94366.0,0.4740329]
[1745703763138,0.5612706,94367.0,94366.0,0.4740329]
[1745703763331,0.9220706,94367.0,94366.0,0.4740329]
[1745703764439,0.5612706,94367.0,94366.0,0.4740329]
[1745703764740,0.9220706,94367.0,94366.0,0.4740329]
[1745703767440,0.5612706,94367.0,94366.0,0.4740329]
[1745703767641,0.9220706,94367.0,94366.0,0.4740329]
[1745703771047,0.5612706,94367.0,94366.0,0.4740329]
[1745703771245,0.9220706,94367.0,94366.0,0.4740329]
[1745703773142,0.5612706,94367.0,94366.0,0.4740329]
[1745703773444,0.9220706,94367.0,94366.0,0.4740329]
[1745703789254,0.5612706,94367.0,94366.0,0.4740329]
[1745703789453,0.9220706,94367.0,94366.0,0.4740329]
[1745703796453,0.5612706,94367.0,94366.0,0.4740329]
[1745703796653,0.9220706,94367.0,94366.0,0.4740329]
[1745703798859,0.5612706,94367.0,94366.0,0.4740329]
[1745703799059,0.9220706,94367.0,94366.0,0.4740329]
[1745703801069,0.8906706,94367.0,94366.0,0.4740329]
[1745703801358,0.6788,94367.0,94366.0,0.4740329]
[1745703801662,0.08101621,94371.0,94370.0,0.2118639]
[1745703801854,0.08101621,94371.0,94370.0,0.3418639]
[1745703802057,0.08101621,94371.0,94370.0,0.39679137]
[1745703802457,0.08101621,94371.0,94370.0,0.46169137]
[1745703802666,0.08101621,94371.0,94370.0,0.47746572]
[1745703802863,0.6297337,94384.0,94377.0,0.2118482]
[1745703803051,0.14,94378.0,94377.0,0.36762255]
[1745703803252,0.308,94378.0,94377.0,0.36762255]
[1745703803660,0.308,94378.0,94377.0,0.43252255]
[1745703804560,0.308,94378.0,94377.0,0.43352255]
[1745703807766,0.308,94378.0,94377.0,0.4177482]
[1745703808065,0.308,94378.0,94377.0,0.43364746]
[1745703809067,0.14,94378.0,94377.0,0.43364746]
[1745703810265,0.308,94378.0,94377.0,0.43364746]
[1745703811169,0.308,94378.0,94377.0,0.40144746]
[1745703814559,0.3399,94378.0,94377.0,0.40144746]
[1745703816073,0.3399,94378.0,94377.0,0.40155719]
[1745703818867,0.373,94378.0,94377.0,0.40155719]
[1745703819069,0.37316266,94378.0,94377.0,0.40155719]
[1745703821064,0.37316266,94378.0,94377.0,0.40156628]
[1745703828479,0.30816266,94378.0,94377.0,0.4018399]
[1745703829079,0.14016266,94378.0,94377.0,0.4018399]
[1745703832196,0.30816266,94378.0,94377.0,0.4018399]
[1745703834291,0.14016266,94378.0,94377.0,0.4018399]
[1745703837095,0.14016266,94378.0,94377.0,0.5777399]
[1745703837402,0.14016266,94378.0,94377.0,0.4018399]
[1745703839098,0.30816266,94378.0,94377.0,0.4018399]
[1745703841189,0.14016266,94378.0,94377.0,0.4018399]
[1745703842101,0.52000856,94378.0,94377.0,0.4018399]
[1745703842300,0.30816266,94378.0,94377.0,0.4018399]
[1745703842900,0.30816266,94378.0,94377.0,0.4016588]
[1745703843999,0.30816266,94378.0,94377.0,0.4336588]
[1745703844299,0.30816266,94378.0,94377.0,0.43410158]
[1745703844599,0.30816266,94378.0,94377.0,0.43410136]
[1745703846393,0.30816266,94378.0,94377.0,0.43410113]
[1745703847102,0.30816266,94378.0,94377.0,0.49862113]
[1745703851811,0.30816266,94378.0,94377.0,0.55345324]
[1745703854914,0.30816266,94378.0,94377.0,0.91425324]
[1745703855115,0.30816266,94378.0,94377.0,0.55345324]
[1745703855312,0.30816266,94378.0,94377.0,0.91425324]
[1745703857003,0.30816266,94378.0,94377.0,0.84973324]
[1745703857324,0.30816266,94378.0,94377.0,0.91425324]
[1745703858811,0.30816266,94378.0,94377.0,0.81773324]
[1745703859001,0.30816266,94378.0,94377.0,0.73020113]
[1745703859608,0.52000856,94378.0,94377.0,0.73020113]
[1745703859808,0.58430856,94378.0,94377.0,0.73020113]
[1745703860602,0.37246266,94378.0,94377.0,0.73020113]
[1745703861415,0.37246266,94378.0,94377.0,0.73016822]
[1745703861816,0.58430856,94378.0,94377.0,0.73016822]
[1745703862410,0.58430856,94378.0,94377.0,0.36936822]
[1745703869827,0.58430856,94378.0,94377.0,0.40186822]
[1745703873031,0.58430856,94378.0,94377.0,0.40170396]
[1745703876231,0.58430856,94378.0,94377.0,0.40181498]
[1745703876531,0.58430856,94378.0,94377.0,0.40181497]
[1745703878024,0.58430856,94378.0,94377.0,0.43321497]
[1745703879727,0.58430856,94378.0,94377.0,0.40181497]
[1745703880329,0.58430856,94378.0,94377.0,0.40185353]
[1745703882636,0.58430856,94378.0,94377.0,0.46637353]
[1745703887838,0.58430856,94378.0,94377.0,0.46641088]
[1745703888537,0.52000856,94378.0,94377.0,0.46641088]
[1745703895238,0.52000856,94378.0,94377.0,0.46642316]
[1745703895439,0.5198459,94378.0,94377.0,0.46642316]
[1745703896442,0.308,94378.0,94377.0,0.46642316]
[1745703897041,0.5198459,94378.0,94377.0,0.46642316]
[1745703897242,0.308,94378.0,94377.0,0.46642316]
[1745703897846,0.30816266,94378.0,94377.0,0.46642316]
[1745703898050,0.34016266,94378.0,94377.0,0.46642316]
[1745703899749,0.37016266,94378.0,94377.0,0.46642316]
[1745703902255,0.34016266,94378.0,94377.0,0.46642316]
[1745703904351,0.30816266,94378.0,94377.0,0.46642316]
[1745703907359,0.30816266,94378.0,94377.0,0.46642315]
[1745703908062,0.30816266,94378.0,94377.0,0.56642281]
[1745703908255,0.14016266,94378.0,94377.0,0.56642281]
[1745703909659,0.14016266,94378.0,94377.0,0.56642181]
[1745703910075,0.14016266,94378.0,94377.0,0.62130868]
[1745703911571,0.14016266,94378.0,94377.0,0.34494031]
[1745703911771,0.14016266,94378.0,94377.0,0.52126851]
[1745703913380,0.14016266,94378.0,94377.0,0.52126887]
[1745703913570,0.14016266,94378.0,94377.0,0.466382]
[1745703913971,0.14016266,94378.0,94377.0,0.52125078]
[1745703914171,0.14016266,94378.0,94377.0,0.466382]
[1745703915175,0.30816266,94378.0,94377.0,0.4498282]
[1745703915375,0.34076266,94378.0,94377.0,0.4663823]
[1745703917175,0.34076266,94378.0,94377.0,0.46638229]
[1745703918173,0.34076266,94378.0,94377.0,0.49958229]
[1745703918981,0.34076266,94378.0,94377.0,0.86038229]
[1745703919783,0.34076266,94378.0,94377.0,0.82718229]
[1745703919982,0.37086266,94378.0,94377.0,0.82718229]
[1745703922782,0.37086266,94378.0,94377.0,0.82718235]
[1745703923787,0.37086266,94378.0,94377.0,0.46638235]
[1745703923991,0.34076266,94378.0,94377.0,0.82718235]
[1745703924380,0.34076266,94378.0,94377.0,0.46638235]
[1745703924580,0.34076266,94378.0,94377.0,0.82718235]
[1745703924887,0.30816266,94378.0,94377.0,0.82718246]
[1745703925087,0.52000856,94378.0,94377.0,0.61533426]
[1745703926087,0.58080856,94378.0,94377.0,0.61533426]
[1745703926786,0.58080856,94378.0,94377.0,0.82718246]
[1745703927081,0.36896266,94378.0,94377.0,0.82718246]
[1745703928482,0.36896266,94378.0,94377.0,0.82718296]
[1745703929990,0.36896266,94378.0,94377.0,0.46638296]
[1745703932389,0.58080856,94378.0,94377.0,0.15755476]
[1745703932587,1.04756457,94378.0,94377.0,0.01755476]
[1745703932787,1.29756457,94378.0,94377.0,1e-08]
[1745703933388,1.04756457,94378.0,94377.0,1e-08]
[1745703934194,0.2118549,94374.0,94373.0,0.22558173]
[1745703934489,0.4518549,94374.0,94373.0,0.24558173]
[1745703935191,0.6499549,94374.0,94373.0,0.24558173]
[1745703935390,0.6829549,94374.0,94373.0,0.24558173]
[1745703935585,0.6829549,94374.0,94373.0,0.45743893]
[1745703935786,0.6829549,94374.0,94373.0,0.24558173]
[1745703936197,0.6829549,94374.0,94373.0,0.45743893]
[1745703936392,0.6829549,94374.0,94373.0,0.2963372]
[1745703936599,0.6829549,94374.0,94373.0,0.2973372]
[1745703939898,0.6829549,94374.0,94373.0,0.08548]
[1745703944901,0.6829549,94374.0,94373.0,0.1018191]
[1745703951112,0.6829549,94374.0,94373.0,0.10196563]
[1745703956912,0.6829549,94374.0,94373.0,0.13189819]
[1745703961615,0.6829549,94374.0,94373.0,0.1319525]
[1745703965419,0.6829549,94374.0,94373.0,0.13194973]
[1745703966915,0.6829549,94374.0,94373.0,0.06746973]
[1745703967419,0.6829549,94374.0,94373.0,0.06749659]
[1745703971023,0.6829549,94374.0,94373.0,0.06750757]
[1745703973019,0.6829549,94374.0,94373.0,0.06755719]
[1745703975026,0.6829549,94374.0,94373.0,0.06755713]
[1745703976025,0.68311106,94374.0,94373.0,0.06755713]
[1745703984522,1.04391106,94374.0,94373.0,0.06755713]
[1745703986119,1.04391106,94374.0,94373.0,0.06684168]
[1745703986826,1.04391106,94374.0,94373.0,0.051]
[1745703987221,0.68311106,94374.0,94373.0,0.051]
[1745703987425,1.04391106,94374.0,94373.0,0.051]
[1745703993329,0.68311106,94374.0,94373.0,0.051]
[1745703993529,1.04391106,94374.0,94373.0,0.051]
[1745703993830,0.68311106,94374.0,94373.0,0.051]
[1745703994026,1.04391106,94374.0,94373.0,0.051]
[1745703996136,1.01381106,94374.0,94373.0,0.051]
[1745703998030,0.98081106,94374.0,94373.0,0.051]
[1745703998231,0.98081106,94374.0,94373.0,0.2628572]
[1745703998426,0.76895616,94374.0,94373.0,0.2628572]
[1745703998629,0.1191951,94374.0,94373.0,1.2386272]
[1745703998830,0.0688951,94374.0,94373.0,1.2886272]
[1745703999018,3e-08,94375.0,94374.0,0.7416649]
[1745703999219,0.16164404,94393.0,94385.0,0.2118302]
[1745703999525,0.29476455,94386.0,94385.0,0.4263102]
[1745703999927,0.29476455,94386.0,94385.0,0.44195074]
[1745704001724,0.29576455,94386.0,94385.0,0.44195074]
[1745704002525,0.29576455,94386.0,94385.0,0.80275074]
[1745704002731,0.29576455,94386.0,94385.0,0.86635074]
[1745704003521,0.161,94386.0,94385.0,0.86635074]
[1745704005724,0.161,94386.0,94385.0,0.50555074]
[1745704005922,0.161,94386.0,94385.0,0.86635074]
[1745704007236,0.161,94386.0,94385.0,0.86636239]
[1745704008136,0.329,94386.0,94385.0,0.86636239]
[1745704008840,0.329,94386.0,94385.0,0.50556239]
[1745704009032,0.329,94386.0,94385.0,0.86636239]
[1745704012638,0.329,94386.0,94385.0,0.50556239]
[1745704012845,0.329,94386.0,94385.0,0.86636239]
[1745704013544,0.329,94386.0,94385.0,0.50556239]
[1745704013744,0.329,94386.0,94385.0,0.86636239]
[1745704014741,0.329,94386.0,94385.0,0.86624132]
[1745704016541,0.329,94386.0,94385.0,0.86623913]
[1745704018741,0.329,94386.0,94385.0,0.86624222]
[1745704019139,0.329,94386.0,94385.0,0.8507102]
[1745704020135,0.329,94386.0,94385.0,0.86625377]
[1745704020539,0.33429806,94386.0,94385.0,0.86625377]
[1745704021041,0.33429806,94386.0,94385.0,0.8507102]
[1745704021848,0.54612606,94386.0,94385.0,0.8507102]
[1745704025851,0.54612606,94386.0,94385.0,0.4899102]
[1745704026051,0.54612606,94386.0,94385.0,0.8507102]
[1745704027473,0.57882606,94386.0,94385.0,0.8507102]
[1745704030066,0.57882606,94386.0,94385.0,0.5108]
[1745704030371,0.57882606,94386.0,94377.0,0.16110173]
[1745704030372,0.2118459,94378.0,94377.0,0.16110173]
[1745704030571,0.50714396,94378.0,94377.0,0.11120173]
[1745704031169,0.2118504,94376.0,94375.0,0.33492328]
[1745704031371,0.47714846,94376.0,94375.0,0.33492328]
[1745704032271,0.64514846,94376.0,94375.0,0.33492328]
[1745704032868,0.64514846,94376.0,94375.0,0.33592328]
[1745704034272,0.71084846,94376.0,94375.0,0.33592328]
[1745704034667,0.71084846,94376.0,94375.0,0.06544]
[1745704053077,0.64514846,94376.0,94375.0,0.2772927]
[1745704053277,0.6398504,94376.0,94375.0,0.2872927]
[1745704053883,0.6398504,94376.0,94375.0,0.3491927]
[1745704054079,0.428,94376.0,94375.0,0.3491927]
[1745704055383,0.6398504,94376.0,94375.0,0.3491927]
[1745704066994,0.6398504,94376.0,94375.0,0.2847527]
[1745704067193,0.6398504,94376.0,94375.0,0.3491927]
[1745704079803,0.6729504,94376.0,94375.0,0.3491927]
[1745704082215,0.67824846,94376.0,94375.0,0.3491927]
[1745704085914,0.67824846,94376.0,94375.0,0.2872927]
[1745704086118,0.70874846,94376.0,94375.0,0.2872927]
[1745704088007,0.70874846,94376.0,94375.0,0.3173927]
[1745704090911,0.70874846,94376.0,94375.0,0.2872927]
[1745704106843,0.67824846,94376.0,94375.0,0.2872927]
[1745704107141,0.67824846,94376.0,94375.0,0.3826927]
[1745704118045,0.64514846,94376.0,94375.0,0.3826927]
[1745704131146,0.64514846,94376.0,94375.0,0.3175927]
[1745704131351,0.67554846,94376.0,94375.0,0.3175927]
[1745704138258,0.67554846,94376.0,94375.0,0.3492927]
[1745704150161,0.67554846,94376.0,94375.0,0.2848527]
[1745704155666,0.67554846,94376.0,94375.0,0.073]
[1745704180086,0.2118684,94368.0,94367.0,0.3608]
[1745704180273,0.4718684,94368.0,94367.0,0.4108]
[1745704181188,0.6709684,94368.0,94367.0,0.4108]
[1745704181382,0.7021684,94368.0,94367.0,0.4438]
[1745704181588,0.7021684,94368.0,94367.0,0.4458]
[1745704182290,0.70746646,94368.0,94367.0,0.4458]
[1745704182484,0.81343446,94368.0,94367.0,0.4128]
[1745704182690,0.2118818,94362.0,94361.0,0.21481028]
[1745704182985,0.2118818,94362.0,94361.0,0.42669438]
[1745704182986,0.8426818,94362.0,94361.0,0.42669438]
[1745704183186,1.0106818,94362.0,94361.0,0.45709438]
[1745704183387,1.0106818,94362.0,94361.0,0.48719438]
[1745704183590,1.0425818,94362.0,94361.0,0.48719438]
[1745704183978,1.0425818,94362.0,94361.0,0.27531028]
[1745704184179,1.0425818,94362.0,94361.0,0.27631028]
[1745704184379,1.0425818,94362.0,94361.0,0.48819438]
[1745704184785,1.0425818,94362.0,94361.0,0.27631028]
[1745704185186,1.0106818,94362.0,94361.0,0.27631028]
[1745704185395,1.01597986,94362.0,94361.0,0.28631028]
[1745704186190,1.01597986,94362.0,94361.0,0.0705]
[1745704186386,1.01597986,94362.0,94361.0,0.0715]
[1745704186783,1.01597986,94362.0,94361.0,0.2833841]
[1745704191489,0.65517986,94362.0,94361.0,0.2833841]
[1745704191684,1.01597986,94362.0,94361.0,0.2833841]
[1745704196597,0.65517986,94362.0,94361.0,0.2833841]
[1745704196897,1.01597986,94362.0,94361.0,0.2833841]
[1745704199601,0.65517986,94362.0,94361.0,0.2833841]
[1745704199805,1.01597986,94362.0,94361.0,0.2833841]
[1745704207402,0.65517986,94362.0,94361.0,0.2833841]
[1745704207596,1.01597986,94362.0,94361.0,0.2833841]
[1745704208401,0.65517986,94362.0,94361.0,0.2833841]
[1745704208596,1.01597986,94362.0,94361.0,0.2833841]
[1745704210112,0.65517986,94362.0,94361.0,0.2833841]
[1745704210316,1.01597986,94362.0,94361.0,0.2833841]
[1745704213813,0.65517986,94362.0,94361.0,0.2833841]
[1745704214004,1.01597986,94362.0,94361.0,0.2833841]
[1745704215918,1.09702793,94362.0,94361.0,0.2833841]
[1745704216213,0.73622793,94362.0,94361.0,0.2833841]
[1745704216417,1.09702793,94362.0,94361.0,0.2833841]
[1745704218011,0.73622793,94362.0,94361.0,0.2833841]
[1745704218206,1.09702793,94362.0,94361.0,0.2833841]
[1745704222109,0.73622793,94362.0,94361.0,0.2833841]
[1745704222314,1.09702793,94362.0,94361.0,0.2833841]
[1745704222518,1.09702793,94362.0,94361.0,0.011]
[1745704223614,1.09702793,94362.0,94361.0,0.0431]